bitfinex-derivatives/quotes_BTCF0:USTF0_20240905
["timestamp","ask_amount","ask_price","bid_price","bid_amount"]
[1725562447519,0.0431231,56630.0,56629.0,0.1793834]
[1725562448218,0.0431231,56630.0,56629.0,0.31396137]
[1725562449028,0.0431231,56630.0,56629.0,0.1793834]
[1725562449228,0.0431231,56630.0,56629.0,0.22588497]
[1725562450227,0.002,56630.0,56629.0,0.31419197]
[1725562451623,0.002,56630.0,56629.0,0.67499197]
[1725562453428,0.002,56630.0,56629.0,0.540414]
[1725562453630,0.002,56630.0,56629.0,0.67498676]
[1725562454131,0.002,56630.0,56629.0,0.58667976]
[1725562455032,0.002,56630.0,56629.0,0.22587976]
[1725562455333,0.002,56630.0,56629.0,0.58667976]
[1725562455926,0.090305,56630.0,56629.0,0.58667976]
[1725562456432,0.002,56630.0,56629.0,0.58667976]
[1725562456919,0.002,56630.0,56629.0,0.69157346]
[1725562457120,0.002,56630.0,56629.0,0.77988046]
[1725562457432,0.35856267,56635.0,56632.0,0.088299]
[1725562457433,0.088301,56633.0,56632.0,0.088299]
[1725562457632,0.088301,56633.0,56632.0,0.32876676]
[1725562457931,0.088301,56633.0,56632.0,0.22487176]
[1725562458332,0.35856267,56635.0,56634.0,0.088299]
[1725562458525,0.35856267,56635.0,56634.0,0.22487176]
[1725562458724,0.35856267,56635.0,56634.0,0.22486646]
[1725562459735,0.00026467,56635.0,56634.0,0.77986727]
[1725562459931,0.00026467,56635.0,56634.0,0.67396546]
[1725562460133,0.00026467,56635.0,56634.0,0.83774435]
[1725562460429,0.00126467,56635.0,56634.0,0.83774435]
[1725562461030,0.04450808,56635.0,56634.0,0.539398]
[1725562461231,0.36056167,56635.0,56634.0,0.451099]
[1725562461426,0.40380067,56635.0,56634.0,0.451099]
[1725562461627,0.40380067,56635.0,56634.0,0.090299]
[1725562463736,0.40380067,56635.0,56634.0,0.1001183]
[1725562463935,0.31550367,56635.0,56634.0,0.1884173]
[1725562464136,0.40380067,56635.0,56634.0,0.1001183]
[1725562464638,0.40380167,56635.0,56634.0,0.1001183]
[1725562464835,0.36056167,56635.0,56634.0,0.1001183]
[1725562465230,0.40380174,56635.0,56634.0,0.1001183]
[1725562466242,0.31550474,56635.0,56634.0,0.1884173]
[1725562466438,0.04550474,56635.0,56634.0,0.1001183]
[1725562466643,0.13380174,56635.0,56634.0,0.1001183]
[1725562468142,0.09056167,56635.0,56634.0,0.23468569]
[1725562473946,0.09056167,56635.0,56634.0,0.2346857]
[1725562476044,0.13380327,56635.0,56634.0,0.1001183]
[1725562478645,0.04550627,56635.0,56634.0,0.4609183]
[1725562478946,0.04550627,56635.0,56634.0,1.7672363]
[1725562479138,0.00226467,56635.0,56634.0,1.7672363]
[1725562479538,1e-08,56635.0,56634.0,3.34104004]
[1725562479942,1e-08,56635.0,56634.0,3.61104004]
[1725562480448,1e-08,56635.0,56634.0,3.4489373]
[1725562480635,1e-08,56635.0,56634.0,0.53269226]
[1725562480841,1e-08,56635.0,56634.0,0.48852367]
[1725562483048,1e-08,56635.0,56634.0,0.71137331]
[1725562483243,1e-08,56635.0,56634.0,2.27485625]
[1725562483649,1e-08,56635.0,56634.0,1.97654267]
[1725562483841,1e-08,56635.0,56634.0,3.61109001]
[1725562484248,1e-08,56635.0,56634.0,3.77485165]
[1725562484849,1e-08,56635.0,56634.0,3.90732037]
[1725562485354,1e-08,56635.0,56634.0,3.77485165]
[1725562485543,1e-08,56635.0,56634.0,3.86315065]
[1725562485943,1e-08,56635.0,56634.0,3.87615065]
[1725562486549,1e-08,56635.0,56634.0,2.38813165]
[1725562486757,1e-08,56635.0,56634.0,0.72437001]
[1725562487143,0.00026467,56640.0,56639.0,0.088291]
[1725562487352,0.00026467,56640.0,56639.0,0.58563722]
[1725562488346,0.00026467,56640.0,56639.0,0.59263722]
[1725562488751,0.08855467,56640.0,56639.0,0.53195208]
[1725562489051,0.53764467,56640.0,56639.0,0.009]
[1725562489251,0.53764467,56640.0,56639.0,0.07954026]
[1725562489459,0.53764467,56640.0,56639.0,0.009]
[1725562489649,0.53864467,56640.0,56639.0,0.018]
[1725562493462,0.63683618,56640.0,56639.0,0.018]
[1725562494055,0.63683618,56640.0,56639.0,0.07090841]
[1725562494363,0.63683618,56640.0,56639.0,0.018]
[1725562495058,1.76651618,56640.0,56639.0,0.018]
[1725562495450,1.76651618,56640.0,56639.0,1e-06]
[1725562497057,0.63683618,56640.0,56639.0,1e-06]
[1725562497557,0.794553,56639.0,56637.0,4.1e-07]
[1725562497772,0.264879,56638.0,56637.0,4.1e-07]
[1725562497968,0.794559,56638.0,56637.0,4.1e-07]
[1725562498266,0.176614,56629.0,56628.0,0.0041]
[1725562498447,0.088308,56628.0,56624.0,0.08857867]
[1725562498651,0.088308,56628.0,56627.0,0.3707244]
[1725562498652,0.136008,56628.0,56627.0,0.3707244]
[1725562500158,0.137008,56628.0,56627.0,0.3707244]
[1725562500355,0.138008,56628.0,56627.0,0.3707244]
[1725562500547,0.226316,56628.0,56627.0,0.3707244]
[1725562500748,0.225316,56628.0,56627.0,0.3608]
[1725562501053,0.314624,56628.0,56627.0,0.3608]
[1725562501255,0.176626,56625.0,56624.0,0.00026467]
[1725562501554,0.446626,56625.0,56624.0,0.00026467]
[1725562501961,0.442626,56625.0,56624.0,0.00026467]
[1725562502747,0.443626,56625.0,56624.0,0.00426467]
[1725562503760,0.443626,56625.0,56624.0,0.01026467]
[1725562503761,0.174626,56625.0,56624.0,0.01026467]
[1725562503960,0.174626,56625.0,56624.0,0.09857967]
[1725562504264,0.086313,56625.0,56624.0,0.09857967]
[1725562504961,0.002,56625.0,56624.0,0.09857967]
[1725562505862,0.090313,56625.0,56624.0,0.09857967]
[1725562506060,0.04612666,56625.0,56624.0,0.09857967]
[1725562506263,0.04612666,56625.0,56624.0,0.16911907]
[1725562507257,0.04612666,56625.0,56624.0,0.09857967]
[1725562507463,0.13443966,56625.0,56624.0,0.01026467]
[1725562508058,0.18423966,56625.0,56624.0,0.01026467]
[1725562508959,0.13443966,56625.0,56624.0,0.01026467]
[1725562509164,0.04612666,56625.0,56624.0,0.09857967]
[1725562512856,0.04612666,56625.0,56624.0,0.01026467]
[1725562513255,0.04712666,56625.0,56624.0,0.01026467]
[1725562513659,0.13543966,56625.0,56624.0,0.01026467]
[1725562513861,0.04712666,56625.0,56624.0,0.00626467]
[1725562514160,0.13643966,56625.0,56624.0,0.00726467]
[1725562515463,0.04812666,56625.0,56624.0,0.00726467]
[1725562515669,0.13643966,56625.0,56624.0,0.00726467]
[1725562516165,0.04812666,56625.0,56624.0,0.00726467]
[1725562516869,0.13643966,56625.0,56624.0,0.00726467]
[1725562517877,0.04812666,56625.0,56624.0,0.00726467]
[1725562518059,0.13643966,56625.0,56624.0,0.00726467]
[1725562518366,0.04812666,56625.0,56624.0,0.09557967]
[1725562521772,0.13643966,56625.0,56624.0,0.00726467]
[1725562522067,0.18383966,56625.0,56624.0,0.07780585]
[1725562522457,1.40195266,56625.0,56624.0,0.07780585]
[1725562522658,0.176648,56618.0,56617.0,0.07056058]
[1725562522863,0.537448,56618.0,56617.0,0.07056058]
[1725562523071,0.088325,56617.0,56616.0,0.07056058]
[1725562523273,0.088325,56617.0,56611.0,0.17648832]
[1725562523274,0.088327,56616.0,56615.0,0.07056058]
[1725562523466,0.358327,56616.0,56615.0,0.07056058]
[1725562523865,0.088333,56612.0,56611.0,0.17648832]
[1725562524161,0.27,56616.0,56614.0,0.088329]
[1725562524162,0.08833,56615.0,56614.0,0.088329]
[1725562524679,0.08833,56615.0,56614.0,0.090329]
[1725562524867,0.08833,56615.0,56614.0,0.002]
[1725562525765,0.13643,56615.0,56614.0,0.002]
[1725562526566,0.13843,56615.0,56614.0,0.002]
[1725562526770,0.13843,56615.0,56614.0,0.07253225]
[1725562526969,0.13843,56615.0,56614.0,0.07253195]
[1725562527267,0.22676,56615.0,56614.0,0.07252625]
[1725562527575,0.22676,56615.0,56614.0,0.002]
[1725562527576,0.27496,56615.0,56614.0,0.002]
[1725562529572,0.13843,56615.0,56614.0,0.002]
[1725562530072,0.22676,56615.0,56614.0,0.002]
[1725562533776,0.31509,56615.0,56614.0,0.002]
[1725562543981,0.42509,56615.0,56614.0,0.002]
[1725562547888,0.42409,56615.0,56614.0,0.002]
[1725562548583,0.42309,56615.0,56614.0,0.002]
[1725562550182,0.33476,56615.0,56614.0,0.002]
[1725562550384,0.0885849,56621.0,56620.0,0.088321]
[1725562550584,0.0002649,56621.0,56620.0,0.451121]
[1725562550790,0.0002649,56621.0,56620.0,1.951121]
[1725562550791,0.1985839,56621.0,56620.0,1.951121]
[1725562551186,0.24183531,56621.0,56620.0,1.951121]
[1725562551375,0.24183531,56621.0,56620.0,0.451121]
[1725562551690,0.24583531,56621.0,56620.0,0.451121]
[1725562551890,0.24983531,56621.0,56620.0,0.451121]
[1725562552186,0.40983531,56621.0,56620.0,0.451121]
[1725562552385,0.40983531,56621.0,56620.0,0.4612479]
[1725562553487,0.32151631,56621.0,56620.0,0.4612479]
[1725562553787,0.40983531,56621.0,56620.0,0.4612479]
[1725562557285,0.3665839,56621.0,56620.0,0.4612479]
[1725562558385,0.0965839,56621.0,56620.0,0.4612479]
[1725562560400,0.0082649,56621.0,56620.0,0.4612479]
[1725562560585,0.0082649,56621.0,56620.0,0.5611479]
[1725562560786,0.0082649,56621.0,56620.0,0.6494689]
[1725562561390,0.0042649,56621.0,56620.0,0.6494689]
[1725562561695,0.0002649,56621.0,56620.0,0.7377899]
[1725562561896,0.0002649,56621.0,56620.0,0.6494689]
[1725562562093,0.0012649,56621.0,56620.0,0.6494689]
[1725562562685,0.0012649,56621.0,56620.0,1.0077899]
[1725562563493,0.0022649,56621.0,56620.0,1.0077899]
[1725562563892,0.0022649,56621.0,56620.0,1.5376299]
[1725562564297,0.0022649,56621.0,56620.0,2.1376299]
[1725562566588,0.0012649,56621.0,56620.0,2.1376299]
[1725562566794,0.0022649,56621.0,56620.0,2.1426299]
[1725562567895,0.0012649,56621.0,56620.0,2.1426299]
[1725562568096,0.0022649,56621.0,56620.0,2.1496299]
[1725562568485,0.0022649,56621.0,56620.0,1.5506299]
[1725562568985,0.0012649,56621.0,56620.0,1.5426299]
[1725562569295,0.0022649,56621.0,56620.0,1.5506299]
[1725562569686,0.0012649,56621.0,56620.0,1.5456299]
[1725562569889,0.0022649,56621.0,56620.0,1.5506299]
[1725562570691,0.0022649,56621.0,56620.0,1.0207899]
[1725562572497,0.0022649,56621.0,56620.0,1.1091109]
[1725562572782,0.0041,56629.0,56628.0,0.264924]
[1725562572986,0.00026514,56637.0,56632.0,0.088302]
[1725562573182,0.08855914,56637.0,56636.0,0.3628]
[1725562573382,0.26442933,56637.0,56636.0,0.3608]
[1725562573582,0.36187033,56637.0,56636.0,0.3608]
[1725562573791,0.18600014,56637.0,56636.0,0.3608]
[1725562574291,0.30100014,56637.0,56636.0,0.3608]
[1725562574487,0.30100014,56637.0,56636.0,0.449096]
[1725562574691,0.47698526,56637.0,56636.0,0.449096]
[1725562574892,0.30100014,56637.0,56636.0,0.449096]
[1725562575397,0.30100014,56637.0,56636.0,0.450096]
[1725562575398,0.30600014,56637.0,56636.0,0.450096]
[1725562576191,0.31500014,56637.0,56636.0,0.451096]
[1725562576394,0.47337148,56637.0,56636.0,0.451096]
[1725562577000,0.19100014,56637.0,56636.0,0.449096]
[1725562577198,0.3543716,56637.0,56636.0,0.450096]
[1725562577392,0.28258019,56637.0,56636.0,0.450096]
[1725562577595,0.39258019,56637.0,56636.0,0.450096]
[1725562578192,0.25180029,56637.0,56636.0,0.450096]
[1725562578507,0.39258019,56637.0,56636.0,0.450096]
[1725562579304,0.25180029,56637.0,56636.0,0.450096]
[1725562580595,0.05350629,56637.0,56636.0,0.450096]
[1725562580800,0.16875318,56637.0,56636.0,0.626688]
[1725562581097,0.05350629,56637.0,56636.0,0.626688]
[1725562581303,0.05350629,56637.0,56636.0,2.126688]
[1725562581304,0.01026514,56637.0,56636.0,2.126688]
[1725562582504,0.01026514,56637.0,56636.0,3.256368]
[1725562587310,0.01026514,56637.0,56636.0,2.479776]
[1725562587508,0.01026514,56637.0,56636.0,0.979776]
[1725562587707,0.01026514,56637.0,56636.0,0.450096]
[1725562588013,0.01026514,56637.0,56636.0,0.3618]
[1725562588014,0.23415314,56637.0,56636.0,0.3618]
[1725562588197,0.19755914,56637.0,56636.0,0.3618]
[1725562588403,0.29499417,56637.0,56636.0,0.3618]
[1725562590002,0.91754675,56637.0,56636.0,0.001]
[1725562590208,0.91754675,56637.0,56631.0,0.0002649]
[1725562590209,0.176604,56632.0,56631.0,0.0002649]
[1725562590509,0.176604,56632.0,56618.0,0.0041]
[1725562590510,0.088322,56620.0,56618.0,0.0041]
[1725562590809,0.088327,56616.0,56614.0,0.3608]
[1725562591005,0.09745604,56615.0,56614.0,0.3608]
[1725562591407,0.0974736,56615.0,56614.0,0.45922464]
[1725562591909,0.04325562,56615.0,56614.0,0.45922464]
[1725562593011,0.04425562,56615.0,56614.0,0.46522464]
[1725562593316,0.04525562,56615.0,56614.0,0.47022464]
[1725562594309,0.04525562,56615.0,56614.0,0.46922464]
[1725562595508,0.04613772,56618.0,56614.0,0.46922464]
[1725562595707,0.04613772,56618.0,56617.0,0.3628]
[1725562596709,0.04713772,56618.0,56617.0,0.3628]
[1725562596908,0.04713772,56618.0,56617.0,0.3648]
[1725562597615,0.04613772,56618.0,56617.0,0.3678]
[1725562600522,0.04613772,56618.0,56617.0,0.456125]
[1725562602725,0.04613772,56618.0,56617.0,0.52646154]
[1725562602915,0.04613772,56618.0,56617.0,0.456125]
[1725562604115,0.0002649,56620.0,56619.0,0.088322]
[1725562604326,0.0002649,56620.0,56619.0,0.448644]
[1725562604510,0.0002649,56620.0,56619.0,1.490162]
[1725562604713,0.0002649,56620.0,56619.0,1.578484]
[1725562605615,0.0002649,56620.0,56619.0,1.579484]
[1725562608121,0.0002649,56620.0,56619.0,0.449644]
[1725562608421,0.0002649,56620.0,56619.0,1.579484]
[1725562609717,0.0002649,56620.0,56619.0,0.449644]
[1725562610825,0.0002649,56620.0,56619.0,0.091322]
[1725562613124,0.0002649,56620.0,56619.0,0.361322]
[1725562613419,0.0002649,56620.0,56619.0,0.449644]
[1725562613620,0.0002649,56620.0,56619.0,1.667806]
[1725562614214,0.0002649,56620.0,56619.0,3.167806]
[1725562614624,0.0041,56626.0,56625.0,0.176626]
[1725562614826,0.0041,56634.0,56628.0,0.088308]
[1725562615126,0.088297,56636.0,56634.0,0.088299]
[1725562615324,0.136797,56635.0,56634.0,0.088299]
[1725562615624,0.136797,56635.0,56634.0,0.090299]
[1725562616627,0.150797,56635.0,56634.0,0.091299]
[1725562616826,0.164797,56635.0,56634.0,0.092299]
[1725562617224,0.154797,56635.0,56634.0,0.091299]
[1725562618529,0.2522316,56635.0,56634.0,0.091299]
[1725562618720,0.2522316,56635.0,56634.0,0.10119743]
[1725562619523,0.2382316,56635.0,56634.0,0.10019743]
[1725562619826,0.2412316,56635.0,56634.0,0.10019743]
[1725562620244,0.2412316,56635.0,56634.0,0.01189843]
[1725562620825,0.68782754,56635.0,56634.0,0.002]
[1725562621622,0.75116374,56635.0,56634.0,0.002]
[1725562623828,0.75116374,56635.0,56629.0,0.0002649]
[1725562623829,0.264915,56630.0,56629.0,0.0002649]
[1725562624032,0.264921,56629.0,56628.0,0.01002882]
[1725562624224,0.96446314,56629.0,56628.0,0.01002882]
[1725562624527,0.534933,56626.0,56625.0,0.002]
[1725562624723,0.54405854,56626.0,56625.0,0.002]
[1725562624920,0.54368121,56626.0,56624.0,0.3608]
[1725562625115,0.09746285,56625.0,56622.0,0.088317]
[1725562625418,0.088316,56623.0,56622.0,0.088317]
[1725562626215,0.141714,56625.0,56624.0,0.088315]
[1725562626447,0.002,56625.0,56624.0,0.719115]
[1725562626629,0.002,56625.0,56624.0,0.721115]
[1725562626927,0.001,56625.0,56624.0,0.721115]
[1725562627127,0.088309,56628.0,56624.0,0.6328]
[1725562627329,0.088309,56628.0,56627.0,0.09031]
[1725562628933,0.088309,56628.0,56627.0,0.002]
[1725562629234,0.18557133,56628.0,56627.0,0.002]
[1725562629432,0.18557133,56628.0,56627.0,0.004]
[1725562629728,1.31533133,56628.0,56627.0,0.007]
[1725562630032,1.31533133,56628.0,56627.0,0.005]
[1725562630330,1.31533133,56628.0,56627.0,0.002]
[1725562630529,1.32533133,56628.0,56627.0,0.003]
[1725562631115,1.33539266,56628.0,56627.0,0.003]
[1725562632324,1.33639266,56628.0,56627.0,0.003]
[1725562632530,1.33539266,56628.0,56627.0,0.003]
[1725562632731,1.34339266,56628.0,56627.0,0.004]
[1725562633639,1.70419266,56628.0,56627.0,0.004]
[1725562634529,0.57443266,56628.0,56627.0,0.004]
[1725562634735,1.10419266,56628.0,56627.0,0.004]
[1725562634928,0.20467933,56628.0,56627.0,0.004]
[1725562635130,0.194618,56628.0,56627.0,0.004]
[1725562635340,0.106309,56628.0,56627.0,0.004]
[1725562635630,0.106308,56628.0,56627.0,0.004]
[1725562636228,0.194616,56628.0,56627.0,0.004]
[1725562636537,0.106308,56628.0,56627.0,0.004]
[1725562636757,0.106308,56628.0,56627.0,0.09231]
[1725562638030,0.106308,56628.0,56627.0,0.004]
[1725562638622,0.106308,56628.0,56621.0,0.00999044]
[1725562638623,0.088321,56620.0,56619.0,0.3610649]
[1725562638830,0.176642,56620.0,56619.0,0.3610649]
[1725562639029,0.176642,56620.0,56619.0,0.4493869]
[1725562639331,0.224042,56620.0,56619.0,0.4493869]
[1725562639842,0.224042,56620.0,56619.0,0.4503869]
[1725562640730,0.26729513,56620.0,56619.0,0.4503869]
[1725562642533,0.26729513,56620.0,56619.0,0.3620649]
[1725562643536,0.21989513,56620.0,56619.0,0.3620649]
[1725562644038,0.13157413,56620.0,56619.0,0.4503869]
[1725562645436,0.09746769,56620.0,56619.0,0.4503869]
[1725562645637,0.04325045,56620.0,56619.0,0.3620649]
[1725562645933,0.14084101,56620.0,56619.0,0.4503869]
[1725562646136,0.04325045,56620.0,56619.0,1.9503869]
[1725562646631,0.14084101,56621.0,56620.0,0.088321]
[1725562646835,0.18031986,56628.0,56623.0,0.088316]
[1725562646836,0.14084101,56624.0,56623.0,0.088316]
[1725562647034,0.14084101,56624.0,56623.0,0.090316]
[1725562647226,0.14084101,56624.0,56623.0,1.588316]
[1725562647422,0.13156076,56625.0,56624.0,0.088315]
[1725562647627,0.13156073,56625.0,56624.0,0.090315]
[1725562648136,0.13156073,56625.0,56624.0,0.142415]
[1725562648536,0.088313,56625.0,56624.0,0.142415]
[1725562648734,0.088313,56625.0,56624.0,0.144415]
[1725562649127,0.088313,56625.0,56624.0,0.21475154]
[1725562649333,0.088313,56625.0,56624.0,0.21575154]
[1725562650224,0.088309,56628.0,56627.0,0.088308]
[1725562650433,0.088309,56628.0,56627.0,0.090308]
[1725562650931,0.0002649,56631.0,56627.0,0.090308]
[1725562650932,0.0002649,56631.0,56630.0,0.088305]
[1725562651238,0.0002649,56631.0,56630.0,0.721105]
[1725562652742,0.0062649,56631.0,56630.0,1.250865]
[1725562652939,0.0092649,56631.0,56630.0,1.250865]
[1725562653141,0.0072649,56631.0,56630.0,1.250865]
[1725562654433,0.0072649,56631.0,56630.0,1.26092746]
[1725562655944,0.0072649,56631.0,56630.0,1.34923246]
[1725562656134,0.0072649,56631.0,56630.0,1.94923246]
[1725562658142,0.0072649,56631.0,56630.0,2.03753746]
[1725562663648,0.14828311,56631.0,56630.0,2.03753746]
[1725562664038,0.19151837,56631.0,56630.0,2.03753746]
[1725562664239,0.05050016,56631.0,56630.0,2.03753746]
[1725562666348,0.0072649,56631.0,56630.0,2.03753746]
[1725562668251,0.0042649,56631.0,56630.0,2.04253746]
[1725562668635,0.0022649,56631.0,56630.0,2.04953746]
[1725562670644,0.0041,56641.0,56636.0,0.088296]
[1725562670851,0.22437886,56650.0,56640.0,0.6308]
[1725562671054,0.22437886,56650.0,56643.0,0.14300783]
[1725562671444,0.22437886,56650.0,56643.0,0.090285]
[1725562671647,0.20138637,56649.0,56643.0,0.090285]
[1725562671860,0.20138637,56649.0,56643.0,0.002]
[1725562672360,0.088279,56647.0,56643.0,0.002]
[1725562672741,0.176568,56644.0,56643.0,0.002]
[1725562672940,0.088284,56644.0,56643.0,0.05474172]
[1725562673656,0.088284,56644.0,56643.0,0.002]
[1725562673951,0.092284,56644.0,56643.0,0.002]
[1725562674354,0.538852,56644.0,56643.0,0.002]
[1725562674554,0.088288,56641.0,56640.0,0.002]
[1725562674755,0.446576,56641.0,56640.0,0.002]
[1725562674955,1.664504,56641.0,56640.0,0.002]
[1725562676054,1.664504,56641.0,56638.0,0.0002649]
[1725562676055,0.176582,56639.0,56638.0,0.0002649]
[1725562676658,0.176582,56639.0,56638.0,0.05302386]
[1725562677359,0.182582,56639.0,56638.0,0.05402386]
[1725562677756,0.275873,56639.0,56638.0,0.0012649]
[1725562678658,0.46013374,56639.0,56638.0,0.0012649]
[1725562679256,0.31911553,56639.0,56638.0,0.0012649]
[1725562679657,0.46013374,56639.0,56638.0,0.0012649]
[1725562680255,0.31911553,56639.0,56638.0,0.0012649]
[1725562680962,0.38088623,56639.0,56638.0,0.0012649]
[1725562682356,0.176608,56631.0,56630.0,0.3608]
[1725562682560,0.21985327,56631.0,56630.0,0.3608]
[1725562682755,0.30815878,56631.0,56630.0,0.3608]
[1725562683180,0.30815878,56631.0,56624.0,0.3221]
[1725562683181,0.088324,56618.0,56617.0,0.453223]
[1725562683363,0.088324,56618.0,56617.0,0.45901052]
[1725562684664,0.053,56620.0,56619.0,0.088322]
[1725562684962,0.0002649,56623.0,56622.0,0.088318]
[1725562685163,0.0002649,56623.0,56622.0,0.449118]
[1725562686459,0.0885809,56623.0,56622.0,0.3608]
[1725562686655,0.4468969,56623.0,56622.0,0.3608]
[1725562686859,0.4468969,56623.0,56622.0,0.43124499]
[1725562687171,0.4468969,56623.0,56622.0,0.43124522]
[1725562687368,0.4488969,56623.0,56622.0,0.44124522]
[1725562687666,0.9787369,56623.0,56622.0,0.01]
[1725562687864,0.9787369,56623.0,56619.0,0.002]
[1725562687865,0.088321,56620.0,56619.0,0.002]
[1725562688062,0.794803,56620.0,56619.0,0.002]
[1725562688263,1.12984,56620.0,56613.0,0.05283509]
[1725562688470,0.176664,56613.0,56612.0,0.0002649]
[1725562688860,1.412584,56613.0,56612.0,0.0002649]
[1725562689868,0.812584,56613.0,56612.0,0.0002649]
[1725562690071,0.813584,56613.0,56612.0,0.0012649]
[1725562690568,0.195332,56613.0,56612.0,0.0012649]
[1725562691264,0.196332,56613.0,56612.0,0.0032649]
[1725562691457,0.196332,56613.0,56612.0,0.3640649]
[1725562691659,0.196332,56613.0,56612.0,0.0032649]
[1725562692562,0.196332,56613.0,56612.0,1.5032649]
[1725562692764,0.142932,56613.0,56612.0,1.5032649]
[1725562692967,0.142932,56613.0,56612.0,1.5915979]
[1725562694179,0.090332,56613.0,56612.0,1.5915979]
[1725562694768,0.090332,56613.0,56612.0,1.8615979]
[1725562695663,0.002,56613.0,56612.0,1.8615979]
[1725562695870,0.002,56613.0,56612.0,1.9120979]
[1725562696063,0.002,56613.0,56612.0,1.9654979]
[1725562700480,0.002,56613.0,56612.0,2.0171979]
[1725562708582,0.09947292,56613.0,56612.0,2.0171979]
[1725562708890,0.16059788,56613.0,56612.0,2.0171979]
[1725562709183,0.04525532,56613.0,56612.0,2.0171979]
[1725562709585,0.0994683,56613.0,56612.0,2.0171979]
[1725562710486,0.0994683,56613.0,56612.0,0.4120979]
[1725562710685,0.0994683,56613.0,56612.0,0.0915979]
[1725562711785,0.1878003,56613.0,56612.0,0.0915979]
[1725562713890,0.34647499,56613.0,56612.0,0.0915979]
[1725562714082,0.1878003,56613.0,56612.0,0.0915979]
[1725562714589,0.34647499,56613.0,56612.0,0.0915979]
[1725562715190,0.34647499,56613.0,56612.0,0.8131979]
[1725562715789,0.090332,56613.0,56612.0,0.8131979]
[1725562716391,0.090332,56613.0,56612.0,1.03567171]
[1725562717083,0.04614335,56613.0,56612.0,1.03600036]
[1725562717283,0.04614335,56613.0,56612.0,0.94780026]
[1725562718292,0.04614335,56613.0,56612.0,0.9477953]
[1725562718588,0.04614335,56613.0,56612.0,1.03600634]
[1725562719189,0.04614335,56613.0,56612.0,0.9477953]
[1725562723097,0.04614335,56613.0,56612.0,0.8594623]
[1725562723503,0.04614335,56613.0,56612.0,0.4986623]
[1725562723504,0.40447535,56613.0,56612.0,0.4986623]
[1725562723690,1.02272735,56613.0,56612.0,0.0032649]
[1725562724685,1.62272735,56613.0,56612.0,0.0032649]
[1725562725086,0.49280735,56613.0,56612.0,0.0032649]
[1725562730807,1.72022264,56613.0,56612.0,0.0032649]
[1725562732409,1.80855464,56613.0,56612.0,0.0032649]
[1725562732610,1.96719851,56613.0,56612.0,9e-07]
[1725562732908,1.80855464,56613.0,56612.0,9e-07]
[1725562733617,1.80856049,56613.0,56612.0,9e-07]
[1725562734613,1.81856049,56613.0,56612.0,9e-07]
[1725562735202,1.99478035,56613.0,56612.0,9e-07]
[1725562736305,0.265017,56608.0,56607.0,0.00017775]
[1725562736506,1.1618243,56608.0,56607.0,0.00017775]
[1725562736706,1.2501633,56608.0,56607.0,7.5e-07]
[1725562736917,1.8501633,56608.0,56607.0,7.5e-07]
[1725562737214,0.26508,56595.0,56594.0,0.0041]
[1725562737402,0.088372,56587.0,56586.0,0.01015159]
[1725562737599,0.088372,56587.0,56581.0,0.092481]
[1725562737600,0.08838,56582.0,56581.0,0.088381]
[1725562737799,0.08838,56582.0,56580.0,0.3608]
[1725562737800,0.088382,56581.0,56580.0,0.3608]
[1725562738018,0.088382,56581.0,56580.0,0.37073643]
[1725562738616,0.088382,56581.0,56580.0,0.45911943]
[1725562738805,0.088382,56581.0,56580.0,0.52977948]
[1725562739008,0.089382,56581.0,56580.0,0.53077948]
[1725562739203,0.089382,56581.0,56580.0,0.5304894]
[1725562739914,0.089382,56581.0,56580.0,0.46011943]
[1725562740113,0.090382,56581.0,56580.0,0.46011943]
[1725562740410,0.090382,56581.0,56580.0,0.5793894]
[1725562740610,0.090382,56581.0,56580.0,0.50901943]
[1725562741207,0.090382,56581.0,56580.0,0.42063643]
[1725562741414,0.178764,56581.0,56580.0,0.41455138]
[1725562741718,0.178764,56581.0,56580.0,0.001]
[1725562743509,0.090382,56581.0,56580.0,0.001]
[1725562744224,0.088388,56577.0,56576.0,0.09821951]
[1725562745818,0.001,56577.0,56576.0,0.09921951]
[1725562746421,0.002,56577.0,56576.0,1.65197089]
[1725562746823,0.002,56577.0,56576.0,1.59921951]
[1725562747721,0.3686389,56586.0,56576.0,1.51083151]
[1725562747920,0.0002649,56586.0,56585.0,0.090375]
[1725562749220,0.0012649,56586.0,56585.0,0.090375]
[1725562749821,0.0022649,56586.0,56585.0,0.090375]
[1725562750416,0.0022649,56586.0,56585.0,0.10046989]
[1725562750725,0.0012649,56586.0,56585.0,0.15426989]
[1725562751628,0.0012649,56586.0,56585.0,0.29539627]
[1725562751822,0.0012649,56586.0,56585.0,0.15426989]
[1725562752220,0.0012649,56586.0,56585.0,0.22463986]
[1725562753228,0.0012649,56586.0,56585.0,0.15426989]
[1725562756639,0.2812649,56586.0,56585.0,0.01509489]
[1725562757334,0.4580129,56586.0,56585.0,0.005]
[1725562757631,1.5071869,56586.0,56585.0,0.005]
[1725562757824,0.176786,56574.0,56573.0,0.0041]
[1725562758030,0.088405,56566.0,56565.0,0.3608]
[1725562758330,0.0884,56569.0,56566.0,0.088405]
[1725562758524,0.00026515,56571.0,56568.0,0.002]
[1725562758733,0.08866215,56571.0,56570.0,0.002]
[1725562758925,0.088402,56568.0,56566.0,0.088405]
[1725562759330,0.00026515,56571.0,56566.0,0.088405]
[1725562759331,0.088404,56567.0,56566.0,0.088405]
[1725562759533,0.088405,56566.0,56565.0,0.37090359]
[1725562759924,0.089405,56566.0,56565.0,0.37090359]
[1725562760439,0.088405,56566.0,56565.0,0.37090359]
[1725562760937,0.088405,56566.0,56565.0,0.45931059]
[1725562761125,0.001,56567.0,56565.0,0.45931059]
[1725562761322,0.001,56567.0,56566.0,0.090405]
[1725562761633,0.00026515,56571.0,56568.0,0.088401]
[1725562761836,0.00026515,56571.0,56570.0,0.3628]
[1725562762036,0.0444355,56572.0,56570.0,0.3628]
[1725562762431,0.0444355,56572.0,56571.0,0.002]
[1725562762935,0.368391,56576.0,56571.0,0.002]
[1725562763122,0.04976515,56579.0,56572.0,0.07039385]
[1725562763321,0.04976515,56579.0,56577.0,0.05279533]
[1725562763322,0.088386,56578.0,56577.0,0.05279533]
[1725562763750,0.088389,56576.0,56575.0,0.43119385]
[1725562764130,0.088389,56576.0,56575.0,0.3608]
[1725562764332,0.088389,56576.0,56575.0,0.43119385]